fUSD/lending_fUSD_20250213
["ID","MTS","AMOUNT","RATE_DAILY","PERIOD"]
[353008041,1739485884415,-1124.476697,0.00014027,2]
[353008042,1739485884424,-1030.770305,0.00014027,2]
[353008043,1739485884434,-1369.077968,0.00014027,2]
[353008044,1739485884444,-500.0,0.00014027,2]
[353008045,1739485884454,-500.0,0.00014027,2]
[353008046,1739485884463,-781.27,0.00014027,2]
[353008047,1739485884473,-500.0,0.00014027,2]
[353008048,1739485884482,-640.12,0.00014027,2]
[353008049,1739485884491,-606.81514371,0.00014027,2]
[353008050,1739485884501,-571.73,0.00014027,2]
[353008051,1739485884514,-767.83,0.00014027,2]
[353008052,1739485884523,-228.64059153,0.00014027,2]
[353008053,1739485884534,-517.58,0.00014027,2]
[353008054,1739485884543,-748.33,0.00014027,2]
[353008055,1739485884553,-500.0,0.00014027,2]
[353008056,1739485884564,-1019.36,0.00014027,2]
[353008057,1739485884574,-454.00469821,0.00014027,2]
[353008058,1739485884585,-500.0,0.00014027,2]
[353008059,1739485884595,-500.0,0.00014027,2]
[353008060,1739485884605,-500.0,0.00014027,2]
[353008061,1739485884616,-536.11,0.00014027,2]
[353008062,1739485884626,-853.88,0.00014027,2]
[353008063,1739485884636,-500.0,0.00014027,2]
[353008064,1739485884646,-505.64329874,0.00014027,2]
[353008065,1739485884656,-500.0,0.00014027,2]
[353008066,1739485884667,-1237.75,0.00014027,2]
[353008067,1739485884676,-500.0,0.00014027,2]
[353008068,1739485884686,-631.51098792,0.00014027,2]
[353008069,1739485884695,-500.0,0.00014027,2]
[353008070,1739485884705,-500.0,0.00014027,2]
[353008071,1739485884716,-500.0,0.00014027,2]
[353008072,1739485884726,-823.6,0.00014027,2]
[353008073,1739485884736,-509.4138662,0.00014027,2]
[353008074,1739485884746,-500.0,0.00014027,2]
[353008075,1739485884755,-500.0,0.00014027,2]
[353008076,1739485884765,-583.03,0.00014027,2]
[353008077,1739485884775,-588.86,0.00014027,2]
[353008078,1739485884784,-500.0,0.00014027,2]
[353008079,1739485884794,-839.01,0.00014027,2]
[353008080,1739485884804,-632.18,0.00014027,2]
[353008081,1739485884814,-514.53896176,0.00014027,2]
[353008082,1739485884823,-500.0,0.00014027,2]
[353008083,1739485884833,-500.0,0.00014027,2]
[353008084,1739485884843,-1100.34,0.00014027,2]
[353008085,1739485884853,-500.0,0.00014027,2]
[353008086,1739485884862,-500.0,0.00014027,2]
[353008087,1739485884872,-907.89,0.00014027,2]
[353008088,1739485884882,-500.0,0.00014027,2]
[353008089,1739485884891,-791.76,0.00014027,2]
[353008090,1739485884901,-500.0,0.00014027,2]
[353008091,1739485884911,-1002.52,0.00014027,2]
[353008092,1739485884920,-500.0,0.00014027,2]
[353008093,1739485884931,-673.2,0.00014027,2]
[353008094,1739485884941,-864.99,0.00014027,2]
[353008095,1739485884950,-500.0,0.00014027,2]
[353008096,1739485884959,-556.42,0.00014027,2]
[353008097,1739485884970,-500.0,0.00014027,2]
[353008098,1739485884979,-606.37,0.00014027,2]
[353008099,1739485884989,-500.0,0.00014027,2]
[353008100,1739485884999,-500.0,0.00014027,2]
[353008101,1739485885009,-500.0,0.00014027,2]
[353008102,1739485885022,-542.4,0.00014027,2]
[353008103,1739485885031,-500.0,0.00014027,2]
[353008104,1739485885041,-606.89,0.00014027,2]
[353008105,1739485885050,-500.0,0.00014027,2]
[353008106,1739485885060,-551.03,0.00014027,2]
[353008107,1739485885070,-571.58,0.00014027,2]
[353008108,1739485885080,-507.69,0.00014027,2]
[353008109,1739485885089,-500.0,0.00014027,2]
[353008110,1739485885102,-500.0,0.00014027,2]
[353008111,1739485885112,-500.0,0.00014027,2]
[353008112,1739485885121,-500.0,0.00014027,2]
[353008113,1739485885130,-500.0,0.00014027,2]
[353008114,1739485885140,-500.0,0.00014027,2]
[353008115,1739485885150,-500.0,0.00014027,2]
[353008116,1739485885160,-500.0,0.00014027,2]
[353008117,1739485885170,-500.0,0.00014027,2]
[353008118,1739485885181,-500.0,0.00014027,2]
[353008119,1739485885191,-2208.67,0.00014027,2]
[353008120,1739485885200,-543.67,0.00014027,2]
[353008121,1739485885210,-823.62,0.00014027,2]
[353008122,1739485885221,-653.16,0.00014027,2]
[353008123,1739485885230,-500.0,0.00014027,2]
[353008124,1739485885240,-500.0,0.00014027,2]
[353008125,1739485885249,-500.0,0.00014027,2]
[353008126,1739485885259,-1041.6,0.00014027,2]
[353008127,1739485885340,-638.54,0.00014027,2]
[353008128,1739485885350,-500.0,0.00014027,2]
[353008129,1739485885360,-2539.19,0.00014027,2]
[353008130,1739485885370,-500.0,0.00014027,2]
[353008131,1739485885380,-3052.42,0.00014027,2]
[353008132,1739485885390,-514.61,0.00014027,2]
[353008133,1739485885399,-1525.33,0.00014027,2]
[353008134,1739485885409,-867.43,0.00014027,2]
[353008135,1739485885420,-500.0,0.00014027,2]
[353008136,1739485885430,-500.0,0.00014027,2]
[353008137,1739485885440,-500.0,0.00014027,2]
[353008138,1739485885450,-500.0,0.00014027,2]
[353008139,1739485885460,-1400.14,0.00014027,2]
[353008140,1739485885469,-487.2048268,0.00014027,2]
[353008141,1739485885480,-917.77,0.00014027,2]
[353008142,1739485885490,-1241.27,0.00014027,2]
[353008143,1739485885499,-991.55,0.00014027,2]
[353008144,1739485885508,-566.52,0.00014027,2]
[353008145,1739485885518,-500.0,0.00014027,2]
[353008146,1739485885527,-500.0,0.00014027,2]
[353008147,1739485885537,-500.0,0.00014027,2]
[353008148,1739485885546,-500.0,0.00014027,2]
[353008149,1739485885555,-500.0,0.00014027,2]
[353008150,1739485885565,-633.2,0.00014027,2]
[353008151,1739485885575,-717.52,0.00014027,2]
[353008152,1739485885584,-689.5,0.00014027,2]
[353008153,1739485885593,-965.58,0.00014027,2]
[353008154,1739485885603,-500.0,0.00014027,2]
[353008155,1739485885615,-756.27,0.00014027,2]
[353008156,1739485885625,-687.68,0.00014027,2]
[353008157,1739485885635,-1669.58,0.00014027,2]
[353008158,1739485885644,-1501.09,0.00014027,2]
[353008159,1739485885654,-825.83,0.00014027,2]
[353008160,1739485885663,-1337.74,0.00014027,2]
[353008161,1739485885673,-500.0,0.00014027,2]
[353008162,1739485885682,-500.0,0.00014027,2]
[353008163,1739485885691,-1371.86,0.00014027,2]
[353008164,1739485885700,-500.0,0.00014027,2]
[353008165,1739485885710,-1702.26,0.00014027,2]
[353008166,1739485885719,-500.0,0.00014027,2]
[353008167,1739485885729,-1754.49,0.00014027,2]
[353008168,1739485885738,-500.0,0.00014027,2]
[353008169,1739485885748,-1078.61,0.00014027,2]
[353008170,1739485885757,-869.45,0.00014027,2]
[353008171,1739485885768,-266.41441058,0.00014027,2]
[353008172,1739485885777,-1158.07,0.00014027,2]
[353008173,1739485885786,-500.0,0.00014027,2]
[353008174,1739485885796,-500.0,0.00014027,2]
[353008175,1739485885806,-500.0,0.00014027,2]
[353008176,1739485885815,-991.47,0.00014027,2]
[353008177,1739485885823,-500.0,0.00014027,2]
[353008178,1739485885832,-1684.45,0.00014027,2]
[353008179,1739485885842,-526.8,0.00014027,2]
[353008180,1739485885852,-660.93,0.00014027,2]
[353008181,1739485885862,-1302.35,0.00014027,2]
[353008182,1739485885871,-500.0,0.00014027,2]
[353008183,1739485885879,-854.62,0.00014027,2]
[353008184,1739485885889,-2012.26,0.00014027,2]
[353008185,1739485885898,-504.56,0.00014027,2]
[353008186,1739485885907,-763.9,0.00014027,2]
[353008187,1739485885917,-696.46,0.00014027,2]
[353008188,1739485885927,-835.17,0.00014027,2]
[353008189,1739485885936,-692.97,0.00014027,2]
[353008190,1739485885945,-566.32,0.00014027,2]
[353008191,1739485885955,-857.95,0.00014027,2]
[353008192,1739485885964,-369.77788131,0.00014027,2]
[353008193,1739485885974,-2021.1,0.00014027,2]
[353008194,1739485885983,-702.16,0.00014027,2]
[353008195,1739485885993,-683.82,0.00014027,2]
[353008196,1739485886002,-1015.7,0.00014027,2]
[353008197,1739485886013,-713.38,0.00014027,2]
[353008198,1739485886024,-500.0,0.00014027,2]
[353008199,1739485886034,-500.0,0.00014027,2]
[353008200,1739485886044,-1424.92,0.00014027,2]
[353008201,1739485886055,-500.0,0.00014027,2]
[353008202,1739485886065,-500.0,0.00014027,2]
[353008203,1739485886075,-500.0,0.00014027,2]
[353008204,1739485886084,-811.86,0.00014027,2]
[353008205,1739485886097,-988.11,0.00014027,2]
[353008206,1739485886107,-1906.79,0.00014027,2]
[353008207,1739485886117,-1427.42,0.00014027,2]
[353008208,1739485886126,-524.63,0.00014027,2]
[353008209,1739485886135,-500.0,0.00014027,2]
[353008210,1739485886144,-881.54,0.00014027,2]
[353008211,1739485886155,-865.9,0.00014027,2]
[353008212,1739485886165,-500.0,0.00014027,2]
[353008213,1739485886175,-1372.61,0.00014027,2]
[353008214,1739485886185,-758.33,0.00014027,2]
[353008215,1739485886195,-500.0,0.00014027,2]
[353008216,1739485886205,-1840.97,0.00014027,2]
[353008217,1739485886215,-1636.34,0.00014027,2]
[353008218,1739485886224,-1782.82,0.00014027,2]
[353008219,1739485886235,-1035.24,0.00014027,2]
[353008220,1739485886244,-151.603264,0.00014027,2]
[353008221,1739485886254,-557.25,0.00014027,2]
[353008222,1739485886264,-687.87,0.00014027,2]
[353008223,1739485886274,-888.74,0.00014027,2]
[353008224,1739485886284,-500.0,0.00014027,2]
[353008225,1739485886294,-1131.23,0.00014027,2]
[353008226,1739485886304,-976.11,0.00014027,2]
[353008227,1739485886314,-548.09,0.00014027,2]
[353008228,1739485886324,-1065.2,0.00014027,2]
[353008229,1739485886333,-500.0,0.00014027,2]
[353008230,1739485886343,-1519.15,0.00014027,2]
[353008231,1739485886352,-825.94,0.00014027,2]
[353008232,1739485886362,-717.12,0.00014027,2]
[353008233,1739485886371,-718.5,0.00014027,2]
[353008234,1739485886381,-500.0,0.00014027,2]
[353008235,1739485886391,-1464.62,0.00014027,2]
[353008236,1739485886401,-365.48330491,0.00014027,2]
[353008237,1739485886410,-1779.83,0.00014027,2]
[353008238,1739485886420,-551.0,0.00014027,2]
[353008239,1739485886430,-1813.74,0.00014027,2]
[353008240,1739485886439,-558.37,0.00014027,2]
[353008241,1739485886448,-310.82774413,0.00014027,2]
[353008242,1739485886458,-807.26,0.00014027,2]
[353008243,1739485886467,-234.98219584,0.00014027,2]
[353008244,1739485886476,-1306.72,0.00014027,2]
[353008245,1739485886486,-1123.76,0.00014027,2]
[353008246,1739485886495,-500.0,0.00014027,2]
[353008247,1739485886505,-500.0,0.00014027,2]
[353008248,1739485886514,-844.9,0.00014027,2]
[353008249,1739485886523,-2257.68,0.00014027,2]
[353008250,1739485886533,-831.33,0.00014027,2]
[353008251,1739485886542,-923.9,0.00014027,2]
[353008252,1739485886551,-500.0,0.00014027,2]
[353008253,1739485886560,-840.31,0.00014027,2]
[353008254,1739485886569,-629.64521269,0.00014027,2]
[353008255,1739485886578,-897.69,0.00014027,2]
[353008256,1739485886587,-1270.71,0.00014027,2]
[353008257,1739485886596,-853.17,0.00014027,2]
[353008258,1739485886605,-500.0,0.00014027,2]
[353008259,1739485886615,-500.0,0.00014027,2]
[353008260,1739485886626,-637.7957951,0.00014027,2]
[353008261,1739485886635,-1705.94,0.00014027,2]
[353008262,1739485886644,-500.0,0.00014027,2]
[353008263,1739485886654,-876.71,0.00014027,2]
[353008264,1739485886663,-885.91,0.00014027,2]
[353008265,1739485886673,-500.0,0.00014027,2]
[353008266,1739485886683,-2161.09,0.00014027,2]
[353008267,1739485886691,-500.0,0.00014027,2]
[353008268,1739485886701,-500.0,0.00014027,2]
[353008269,1739485886710,-1238.79,0.00014027,2]
[353008270,1739485886719,-3040.0,0.00014027,2]
[353008271,1739485886728,-1105.8,0.00014027,2]
[353008272,1739485886738,-2265.19,0.00014027,2]
[353008273,1739485886747,-1322.86,0.00014027,2]
[353008274,1739485886757,-500.0,0.00014027,2]
[353008275,1739485886766,-500.0,0.00014027,2]
[353008276,1739485886776,-646.18,0.00014027,2]
[353008277,1739485886786,-893.53,0.00014027,2]
[353008278,1739485886795,-906.34,0.00014027,2]
[353008279,1739485886805,-523.6,0.00014027,2]
[353008280,1739485886815,-500.0,0.00014027,2]
[353008281,1739485886824,-970.55,0.00014027,2]
[353008282,1739485886835,-702.31,0.00014027,2]
[353008283,1739485886844,-553.1,0.00014027,2]
[353008284,1739485886853,-2482.92,0.00014027,2]
[353008285,1739485886863,-500.0,0.00014027,2]
[353008286,1739485886874,-858.18,0.00014027,2]
[353008287,1739485886884,-669.76,0.00014027,2]
[353008288,1739485886894,-710.97,0.00014027,2]
[353008289,1739485886903,-1892.5,0.00014027,2]
[353008290,1739485886913,-739.26,0.00014027,2]
[353008291,1739485886924,-1559.26,0.00014027,2]
[353008292,1739485886933,-151.603264,0.00014027,2]
[353008293,1739485886943,-500.0,0.00014027,2]
[353008294,1739485886953,-1326.07,0.00014027,2]
[353008295,1739485886963,-602.38,0.00014027,2]
[353008296,1739485886972,-835.99,0.00014027,2]
[353008297,1739485886982,-1789.82,0.00014027,2]
[353008298,1739485886991,-500.0,0.00014027,2]
[353008299,1739485887002,-551.86,0.00014027,2]
[353008300,1739485887012,-1318.31,0.00014027,2]
[353008301,1739485887025,-500.0,0.00014027,2]
[353008302,1739485887035,-864.67,0.00014027,2]
[353008303,1739485887045,-500.0,0.00014027,2]
[353008304,1739485887054,-1141.82,0.00014027,2]
[353008305,1739485887064,-1994.16,0.00014027,2]
[353008306,1739485887074,-812.11,0.00014027,2]
[353008307,1739485887083,-500.0,0.00014027,2]
[353008308,1739485887093,-500.0,0.00014027,2]
[353008309,1739485887104,-1079.19,0.00014027,2]
[353008310,1739485887114,-859.06,0.00014027,2]
[353008311,1739485887125,-1941.15,0.00014027,2]
[353008312,1739485887135,-2409.32,0.00014027,2]
[353008313,1739485887145,-592.63,0.00014027,2]
[353008314,1739485887154,-900.38,0.00014027,2]
[353008315,1739485887164,-1741.64,0.00014027,2]
[353008316,1739485887173,-1010.42,0.00014027,2]
[353008317,1739485887183,-730.65,0.00014027,2]
[353008318,1739485887192,-1201.88,0.00014027,2]
[353008319,1739485887202,-500.0,0.00014027,2]
[353008320,1739485887211,-645.62,0.00014027,2]
[353008321,1739485887220,-2964.55,0.00014027,2]
[353008322,1739485887230,-765.27,0.00014027,2]
[353008323,1739485887239,-1693.27,0.00014027,2]
[353008324,1739485887249,-1023.18,0.00014027,2]
[353008325,1739485887259,-1983.35,0.00014027,2]
[353008326,1739485887268,-1199.21,0.00014027,2]
[353008327,1739485887278,-1991.14,0.00014027,2]
[353008328,1739485887288,-533.09,0.00014027,2]
[353008329,1739485887298,-500.0,0.00014027,2]
[353008330,1739485887308,-2700.69,0.00014027,2]
[353008331,1739485887317,-4281.75,0.00014027,2]
[353008332,1739485887327,-1072.56,0.00014027,2]
[353008333,1739485887336,-2181.51,0.00014027,2]
[353008334,1739485887346,-2105.12,0.00014027,2]
[353008335,1739485887355,-2362.29,0.00014027,2]
[353008336,1739485887365,-500.0,0.00014027,2]
[353008337,1739485887375,-797.65,0.00014027,2]
[353008338,1739485887384,-1372.43,0.00014027,2]
[353008339,1739485887394,-500.0,0.00014027,2]
[353008340,1739485887404,-500.0,0.00014027,2]
[353008341,1739485887413,-2270.27,0.00014027,2]
[353008342,1739485887423,-500.0,0.00014027,2]
[353008343,1739485887432,-701.26,0.00014027,2]
[353008344,1739485887441,-1635.6,0.00014027,2]
[353008345,1739485887451,-1210.46,0.00014027,2]
[353008346,1739485887461,-1551.99,0.00014027,2]
[353008347,1739485887472,-2766.93,0.00014027,2]
[353008348,1739485887482,-4033.58,0.00014027,2]
[353008349,1739485887491,-2765.04,0.00014027,2]
[353008350,1739485887501,-660.75,0.00014027,2]
[353008351,1739485887510,-2103.7,0.00014027,2]
[353008352,1739485887520,-924.48,0.00014027,2]
[353008353,1739485887530,-794.33,0.00014027,2]
[353008354,1739485887539,-1374.92,0.00014027,2]
[353008355,1739485887549,-1140.21,0.00014027,2]
[353008356,1739485887558,-500.0,0.00014027,2]
[353008357,1739485887568,-1394.91,0.00014027,2]
[353008358,1739485887580,-2230.12,0.00014027,2]
[353008359,1739485887590,-500.0,0.00014027,2]
[353008360,1739485887601,-878.31,0.00014027,2]
[353008361,1739485887611,-1071.07,0.00014027,2]
[353008362,1739485887623,-3342.84,0.00014027,2]
[353008363,1739485887633,-683.58,0.00014027,2]
[353008364,1739485887643,-1308.38,0.00014027,2]
[353008365,1739485887654,-3531.08,0.00014027,2]
[353008366,1739485887665,-1653.81,0.00014027,2]
[353008367,1739485887676,-553.67,0.00014027,2]
[353008368,1739485887687,-988.77,0.00014027,2]
[353008369,1739485887697,-500.0,0.00014027,2]
[353008370,1739485887707,-2226.29,0.00014027,2]
[353008371,1739485887717,-969.77,0.00014027,2]
[353008372,1739485887728,-1807.21,0.00014027,2]
[353008373,1739485887739,-1796.12,0.00014027,2]
[353008374,1739485887751,-3314.33,0.00014027,2]
[353008375,1739485887761,-500.0,0.00014027,2]
[353008376,1739485887771,-3189.0,0.00014027,2]
[353008377,1739485887781,-803.11,0.00014027,2]
[353008378,1739485887793,-607.85,0.00014027,2]
[353008379,1739485887805,-761.91,0.00014027,2]
[353008380,1739485887815,-621.21,0.00014027,2]
[353008381,1739485887825,-1972.85,0.00014027,2]
[353008382,1739485887835,-523.93,0.00014027,2]
[353008383,1739485887845,-3990.94,0.00014027,2]
[353008384,1739485887854,-719.42,0.00014027,2]
[353008385,1739485887864,-749.77,0.00014027,2]
[353008386,1739485887874,-500.0,0.00014027,2]
[353008387,1739485887884,-1753.67,0.00014027,2]
[353008388,1739485887894,-2497.17,0.00014027,2]
[353008389,1739485887904,-3698.9,0.00014027,2]
[353008390,1739485887914,-1325.27,0.00014027,2]
[353008391,1739485887924,-500.0,0.00014027,2]
[353008392,1739485887933,-1628.89,0.00014027,2]
[353008393,1739485887943,-3120.71,0.00014027,2]
[353008394,1739485887952,-500.0,0.00014027,2]
[353008395,1739485887962,-3912.39,0.00014027,2]
[353008396,1739485887972,-511.69,0.00014027,2]
[353008397,1739485887981,-1203.12,0.00014027,2]
[353008398,1739485887991,-635.38,0.00014027,2]
[353008399,1739485888000,-500.0,0.00014027,2]
[353008400,1739485888011,-1174.26,0.00014027,2]
[353008401,1739485888023,-500.0,0.00014027,2]
[353008402,1739485888033,-5014.48,0.00014027,2]
[353008403,1739485888043,-500.0,0.00014027,2]
[353008404,1739485888055,-591.53,0.00014027,2]
[353008405,1739485888064,-2834.89,0.00014027,2]
[353008406,1739485888075,-1129.98,0.00014027,2]
[353008407,1739485888084,-4012.08,0.00014027,2]
[353008408,1739485888094,-1877.06,0.00014027,2]
[353008409,1739485888104,-2305.18,0.00014027,2]
[353008410,1739485888114,-3400.07,0.00014027,2]
[353008411,1739485888123,-10601.94,0.00014027,2]
[353008412,1739485888133,-1278.06,0.00014027,2]
[353008413,1739485888142,-2677.19,0.00014027,2]
[353008414,1739485888152,-2091.53,0.00014027,2]
[353008415,1739485888162,-1914.19,0.00014027,2]
[353008416,1739485888172,-500.0,0.00014027,2]
[353008417,1739485888182,-1244.36,0.00014027,2]
[353008418,1739485888192,-6319.86,0.00014027,2]
[353008419,1739485888201,-2222.28,0.00014027,2]
[353008420,1739485888211,-2434.73,0.00014027,2]
[353008421,1739485888221,-1301.75,0.00014027,2]
[353008422,1739485888231,-3378.69,0.00014027,2]
[353008423,1739485888241,-1073.98,0.00014027,2]
[353008424,1739485888250,-500.0,0.00014027,2]
[353008425,1739485888260,-1003.25,0.00014027,2]
[353008426,1739485888269,-500.0,0.00014027,2]
[353008427,1739485888280,-3213.97,0.00014027,2]
[353008428,1739485888290,-1894.84,0.00014027,2]
[353008429,1739485888300,-1618.51,0.00014027,2]
[353008430,1739485888310,-3027.83,0.00014027,2]
[353008431,1739485888320,-1463.57,0.00014027,2]
[353008432,1739485888329,-551.57,0.00014027,2]
[353008433,1739485888339,-1866.04,0.00014027,2]
[353008434,1739485888349,-3405.09,0.00014027,2]
[353008435,1739485888359,-3794.0,0.00014027,2]
[353008436,1739485888368,-3558.25,0.00014027,2]
[353008437,1739485888379,-1199.38,0.00014027,2]
[353008438,1739485888388,-972.02,0.00014027,2]
[353008439,1739485888399,-5141.78,0.00014027,2]
[353008440,1739485888408,-5036.58,0.00014027,2]
[353008441,1739485888418,-231.98442171,0.00014027,2]
[353008442,1739485888428,-1457.37,0.00014027,2]
[353008443,1739485888437,-4943.34,0.00014027,2]
[353008444,1739485888447,-500.0,0.00014027,2]
[353008445,1739485888456,-1646.26,0.00014027,2]
[353008446,1739485888467,-1023.76,0.00014027,2]
[353008447,1739485888476,-973.76,0.00014027,2]
[353008448,1739485888486,-1078.92,0.00014027,2]
[353008449,1739485888496,-3488.7,0.00014027,2]
[353008450,1739485888505,-9947.08,0.00014027,2]
[353008451,1739485888515,-1167.35,0.00014027,2]
[353008452,1739485888525,-1925.44,0.00014027,2]
[353008453,1739485888535,-3871.01,0.00014027,2]
[353008454,1739485888544,-3374.31,0.00014027,2]
[353008455,1739485888554,-3262.34,0.00014027,2]
[353008456,1739485888563,-3751.7,0.00014027,2]
[353008457,1739485888573,-2216.47,0.00014027,2]
[353008458,1739485888582,-500.0,0.00014027,2]
[353008459,1739485888591,-500.0,0.00014027,2]
[353008460,1739485888600,-1272.94,0.00014027,2]
[353008461,1739485888614,-2198.57,0.00014027,2]
[353008462,1739485888624,-3047.23,0.00014027,2]
[353008463,1739485888633,-4282.13,0.00014027,2]
[353008464,1739485888642,-1579.29,0.00014027,2]
[353008465,1739485888652,-2262.09,0.00014027,2]
[353008466,1739485888662,-2034.1,0.00014027,2]
[353008467,1739485888671,-4796.16,0.00014027,2]
[353008468,1739485888681,-621.58,0.00014027,2]
[353008469,1739485888690,-4188.27,0.00014027,2]
[353008470,1739485888700,-5302.96,0.00014027,2]
[353008471,1739485888709,-2900.35,0.00014027,2]
[353008472,1739485888719,-3352.12,0.00014027,2]
[353008473,1739485888729,-525.01,0.00014027,2]
[353008474,1739485888739,-2517.29,0.00014027,2]
[353008475,1739485888749,-3510.5,0.00014027,2]
[353008476,1739485888758,-1911.76,0.00014027,2]
[353008477,1739485888767,-3186.25,0.00014027,2]
[353008478,1739485888777,-1411.53,0.00014027,2]
[353008479,1739485888787,-5245.34,0.00014027,2]
[353008480,1739485888797,-500.0,0.00014027,2]
[353008481,1739485888807,-4040.71,0.00014027,2]
[353008482,1739485888816,-2434.4,0.00014027,2]
[353008483,1739485888826,-797.43,0.00014027,2]
[353008484,1739485888836,-3997.95,0.00014027,2]
[353008485,1739485888846,-500.0,0.00014027,2]
[353008486,1739485888855,-3418.06,0.00014027,2]
[353008487,1739485888865,-3613.39,0.00014027,2]
[353008488,1739485888875,-566.64,0.00014027,2]
[353008489,1739485888885,-500.0,0.00014027,2]
[353008490,1739485888895,-8838.73,0.00014027,2]
[353008491,1739485889080,-624.99,0.00014027,2]
[353008492,1739485889091,-720.74,0.00014027,2]
[353008493,1739485889101,-3533.94,0.00014027,2]
[353008494,1739485889111,-3776.32,0.00014027,2]
[353008495,1739485889122,-522.13,0.00014027,2]
[353008496,1739485889132,-4171.69,0.00014027,2]
[353008497,1739485889141,-2767.11,0.00014027,2]
[353008498,1739485889150,-500.0,0.00014027,2]
[353008499,1739485889160,-1300.63,0.00014027,2]
[353008500,1739485889170,-3523.18,0.00014027,2]
[353008501,1739485889181,-4629.45,0.00014027,2]
[353008502,1739485889190,-2317.93,0.00014027,2]
[353008503,1739485889200,-542.74,0.00014027,2]
[353008504,1739485889210,-6501.79,0.00014027,2]
[353008505,1739485889220,-649.96,0.00014027,2]
[353008506,1739485889230,-2852.77,0.00014027,2]
[353008507,1739485889240,-4468.57,0.00014027,2]
[353008508,1739485889249,-773.78,0.00014027,2]
[353008509,1739485889258,-724.47,0.00014027,2]
[353008510,1739485889268,-2513.38,0.00014027,2]
[353008511,1739485889277,-4071.43,0.00014027,2]
[353008512,1739485889286,-3680.29,0.00014027,2]
[353008513,1739485889296,-3113.41,0.00014027,2]
[353008514,1739485889305,-964.12,0.00014027,2]
[353008515,1739485889315,-500.0,0.00014027,2]
[353008516,1739485889325,-500.0,0.00014027,2]
[353008517,1739485889334,-500.0,0.00014027,2]
[353008518,1739485889344,-1523.71,0.00014027,2]
[353008519,1739485889354,-525.45,0.00014027,2]
[353008520,1739485889363,-741.53,0.00014027,2]
[353008521,1739485889372,-2768.98,0.00014027,2]
[353008522,1739485889384,-1470.77,0.00014027,2]
[353008523,1739485889394,-3441.38,0.00014027,2]
[353008524,1739485889403,-4132.51,0.00014027,2]
[353008525,1739485889413,-1712.88,0.00014027,2]
[353008526,1739485889422,-500.0,0.00014027,2]
[353008527,1739485889431,-4938.55,0.00014027,2]
[353008528,1739485889440,-2124.68,0.00014027,2]
[353008529,1739485889450,-1789.26,0.00014027,2]
[353008530,1739485889459,-1226.02,0.00014027,2]
[353008531,1739485889468,-1451.96,0.00014027,2]
[353008532,1739485889478,-500.0,0.00014027,2]
[353008533,1739485889487,-3558.23,0.00014027,2]
[353008534,1739485889496,-824.05,0.00014027,2]
[353008535,1739485889505,-880.79,0.00014027,2]
[353008536,1739485889514,-4167.53,0.00014027,2]
[353008537,1739485889524,-1936.97,0.00014027,2]
[353008538,1739485889533,-1838.56,0.00014027,2]
[353008539,1739485889542,-2962.2,0.00014027,2]
[353008540,1739485889551,-598.78,0.00014027,2]